bitfinex-derivatives/quotes_ETHF0:USTF0_20250115
["timestamp","ask_amount","ask_price","bid_price","bid_amount"]
[1736949660891,0.60475,3307.6,3307.5,1.2093]
[1736949661196,0.60497,3306.5,3306.4,1.688]
[1736949661389,0.60495,3306.5,3306.4,0.22245378]
[1736949661801,8.1039,3307.0,3306.4,3.04553866]
[1736949662000,8.1039,3307.0,3306.5,0.22245378]
[1736949662296,3.16553766,3306.9,3306.5,1.2097]
[1736949662486,0.60491,3306.8,3306.6,0.60494]
[1736949662692,3.2078,3307.3,3306.5,6.2097]
[1736949662896,0.60482,3307.3,3307.1,3.42792488]
[1736949663197,0.60481,3307.3,3307.2,1.682]
[1736949663397,0.00395332,3308.0,3307.1,2.82308488]
[1736949663595,0.60483,3307.2,3307.1,1.682]
[1736949663793,0.6048,3307.4,3307.2,0.60481]
[1736949664096,0.00395332,3308.0,3307.3,3.2078]
[1736949664495,0.60479,3307.4,3307.3,3.2078]
[1736949664694,3.33325579,3307.9,3306.5,7.68247]
[1736949664695,0.60488,3306.9,3306.8,3.2078]
[1736949664890,0.60494,3306.6,3306.5,1.2097]
[1736949665488,1.5125,3306.3,3305.3,2.28716]
[1736949665688,0.60514,3305.5,3304.8,2.82308488]
[1736949665894,3.2078,3305.8,3305.0,4.8898]
[1736949666100,7.58941337,3306.2,3305.4,1.94864]
[1736949666101,0.60512,3305.6,3305.4,1.94864]
[1736949666397,0.60514,3305.5,3305.4,0.71667]
[1736949666596,0.60536,3304.3,3304.2,3.2078]
[1736949666802,0.60536,3304.3,3304.2,0.06052902]
[1736949667005,0.60536,3304.3,3304.2,0.50175107]
[1736949667395,4.00027833,3304.3,3304.2,0.50175107]
[1736949667698,4.00027833,3304.3,3304.2,0.06052902]
[1736949667894,4.00027833,3304.3,3304.1,0.2421]
[1736949667895,15.99210321,3304.3,3304.1,0.2421]
[1736949668097,0.60558,3303.1,3302.8,0.60562]
[1736949668297,0.60559,3303.1,3302.7,1.04744359]
[1736949668492,0.60555,3303.3,3302.8,0.60562]
[1736949668705,0.60556,3303.2,3302.8,0.60563]
[1736949668905,0.60558,3303.1,3302.8,0.013]
[1736949669103,0.60561,3302.9,3302.8,0.1579]
[1736949669403,3.2078,3303.6,3302.8,0.4001]
[1736949669601,0.6055,3303.5,3303.0,0.60559]
[1736949669799,3.2078,3303.8,3303.0,3.2078]
[1736949669999,0.60561,3303.0,3302.8,0.4001]
[1736949670208,3.26887061,3303.4,3302.8,0.4001]
[1736949670506,0.60561,3302.9,3302.8,0.4001]
[1736949670808,0.60576,3302.1,3301.9,4.8908]
[1736949670997,0.60569,3302.5,3301.9,3.2078]
[1736949671193,3.2078,3302.6,3302.0,0.60577]
[1736949671404,0.6057,3302.5,3301.9,4.8908]
[1736949671601,3.2258075,3302.5,3301.9,4.8908]
[1736949671910,3.81334,3303.3,3302.9,0.60561]
[1736949672103,3.2078,3303.3,3302.7,1.683]
[1736949672303,8.22065473,3303.8,3303.1,3.2078]
[1736949672608,0.60537,3304.3,3303.7,0.60547]
[1736949672796,5.42197,3304.8,3304.4,0.60534]
[1736949672998,3.2078,3305.6,3304.6,3.2078]
[1736949673198,0.60522,3305.1,3304.7,2.42482786]
[1736949673395,3.24745707,3305.0,3304.8,0.13655786]
[1736949673607,3.24745707,3305.0,3304.9,0.13655786]
[1736949673802,0.60523,3305.0,3304.9,0.13655786]
[1736949674000,3.85268707,3305.0,3304.9,0.13655786]
[1736949674511,3.85268707,3305.0,3303.7,3.25392461]
[1736949674512,3.24745707,3305.0,3303.7,3.2078]
[1736949674715,0.60533,3304.5,3304.1,0.60538]
[1736949674904,0.60534,3304.4,3304.1,0.60538]
[1736949675304,1.51305,3305.1,3304.1,0.60538]
[1736949675506,1.51305,3305.1,3303.8,1.683]
[1736949675704,0.60535,3304.4,3303.9,0.60543]
[1736949676005,3.2078,3304.8,3303.8,1.683]
[1736949676202,0.60531,3304.6,3304.2,0.60537]
[1736949676512,3.41168765,3304.7,3304.6,0.6053]
[1736949676813,0.60524,3305.0,3304.6,0.60528]
[1736949677012,0.60524,3305.0,3304.5,3.2078]
[1736949677013,3.41168765,3305.0,3304.5,3.2078]
[1736949677207,3.2078,3304.8,3304.1,3.2078]
[1736949677717,0.60531,3304.6,3304.1,3.2078]
[1736949678008,3.40540397,3304.7,3304.1,3.2078]
[1736949678214,3.40540397,3304.5,3304.4,0.60534]
[1736949678413,3.28614616,3304.6,3304.1,3.2078]
[1736949678611,3.28614616,3304.6,3304.5,0.60532]
[1736949678910,4.5994,3305.1,3304.5,3.2078]
[1736949679115,4.7256,3305.9,3304.9,3.2078]
[1736949679413,3.2078,3306.2,3306.1,0.60503]
[1736949679715,3.81282,3306.2,3305.6,1.683]
[1736949679902,3.2931128,3306.1,3305.8,0.60508]
[1736949680111,6.5009128,3306.2,3305.6,1.683]
[1736949680409,4.5994,3306.6,3306.3,0.59979099]
[1736949680601,4.5994,3306.6,3306.5,0.60495]
[1736949680808,0.60491,3306.8,3306.3,0.60498]
[1736949681110,9.3608,3307.0,3306.1,3.2078]
[1736949681309,3.41573463,3306.8,3306.7,0.60492]
[1736949681610,0.60478,3307.5,3307.0,0.60485]
[1736949681911,3.50425866,3307.2,3306.6,1.683]
[1736949682111,3.50425866,3307.3,3306.6,1.683]
[1736949682311,3.18674369,3307.4,3307.2,0.60483]
[1736949682507,0.60477,3307.6,3307.1,0.60483]
[1736949682813,0.60477,3307.6,3306.6,1.683]
[1736949682814,0.60483,3307.2,3306.6,2.28793]
[1736949683111,3.2078,3307.3,3306.6,1.683]
[1736949683411,3.2078,3307.8,3306.8,3.2078]
[1736949683815,6.70502271,3307.8,3306.8,3.2078]
[1736949684019,0.60488,3306.9,3306.8,3.2078]
[1736949684204,3.2078,3307.3,3306.4,3.2078]
[1736949684513,3.2718347,3306.9,3306.4,3.2078]
[1736949684814,3.2078,3306.8,3306.1,1.683]
[1736949685212,6.4796347,3306.8,3306.0,3.2078]
[1736949685609,3.2078,3306.8,3306.0,3.2078]
[1736949685809,1.51193,3307.6,3306.4,0.60496]
[1736949685810,3.2078,3307.2,3306.4,0.60496]
[1736949686106,3.2078,3306.8,3306.7,0.60492]
[1736949686508,3.33557188,3307.6,3307.0,0.60485]
[1736949686705,0.60478,3307.5,3307.1,0.74109279]
[1736949686918,3.94036188,3307.4,3307.2,0.13625279]
[1736949687217,3.2078,3307.7,3307.3,0.13625279]
[1736949687412,3.49609087,3307.5,3307.4,0.13623559]
[1736949687618,0.60477,3307.5,3307.4,0.13623559]
[1736949687909,3.2078,3307.7,3307.4,0.13623559]
[1736949687910,3.49609087,3307.6,3307.4,3.34403559]
[1736949688108,3.32e-06,3308.0,3307.5,5.0731602]
[1736949688319,3.32e-06,3308.0,3307.9,3.8125]
[1736949688513,3.32e-06,3308.0,3307.9,3.94873559]
[1736949688705,3.32e-06,3308.0,3307.9,45.18908296]
[1736949689112,3.32e-06,3308.0,3307.9,45.18907759]
[1736949689313,3.32e-06,3308.0,3307.9,49.74870563]
[1736949689815,3.32e-06,3308.0,3307.9,51.43070563]
[1736949690415,3.32e-06,3308.0,3307.9,51.87026186]
[1736949690715,3.2078,3309.3,3307.9,3.78333615]
[1736949690906,3.2078,3309.3,3308.6,3.2078]
[1736949691108,3.2078,3309.3,3307.9,0.43955623]
[1736949691109,0.60458,3308.6,3307.9,1.682]
[1736949691309,3.2078,3308.7,3308.0,0.13597555]
[1736949691510,3.2078,3308.7,3308.1,0.13597555]
[1736949691716,3.2078,3308.2,3307.9,1.677]
[1736949691916,3.2078,3308.2,3308.0,0.13429522]
[1736949692116,3.2078,3308.2,3308.1,0.13429522]
[1736949692418,3.2078,3308.2,3308.1,0.13402082]
[1736949692713,3.2078,3308.2,3308.1,0.13403415]
[1736949692915,3.2078,3308.2,3307.4,3.2078]
[1736949693122,3.2078,3308.2,3306.6,3.25392461]
[1736949693123,6.55766359,3308.2,3306.7,1.677]
[1736949693415,0.6048,3307.4,3307.0,3.2078]
[1736949693713,6.55766359,3308.2,3306.9,0.43959682]
[1736949693907,3.2078,3308.0,3307.2,3.2078]
[1736949694111,3.81249,3308.0,3307.5,0.60476]
[1736949694314,3.94485209,3307.9,3307.6,1.677]
[1736949694513,0.60472,3307.8,3307.6,1.677]
[1736949695014,3.34015209,3307.7,3307.6,2.28175]
[1736949695213,3.2078,3308.0,3307.6,1.81092584]
[1736949695411,3.2078,3308.0,3307.7,0.73864584]
[1736949695719,3.4743138,3307.9,3307.2,3.2078]
[1736949695921,3.4743138,3307.9,3307.3,0.13396897]
[1736949696214,0.60487,3307.0,3306.5,3.2078]
[1736949696406,3.2078,3306.7,3306.4,0.2419]
[1736949697209,3.2078,3306.7,3306.6,0.60494]
[1736949697717,0.60495,3306.5,3306.4,0.2419]
[1736949698017,4.6907,3306.6,3305.1,3.2078]
[1736949698220,3.2078,3305.8,3305.1,3.2078]
[1736949698415,4.6865,3306.4,3305.5,3.2078]
[1736949698718,4.6865,3306.4,3306.0,0.60505]
[1736949698719,3.2078,3306.1,3306.0,0.60505]
[1736949699014,5.29149,3306.4,3306.0,0.036]
[1736949699015,3.2078,3306.3,3306.0,0.036]
[1736949699217,3.38607954,3306.1,3306.0,0.036]
[1736949699417,3.2078,3306.5,3306.0,0.036]
[1736949699715,3.2078,3307.4,3306.1,1.51257]
[1736949700023,0.60484,3307.2,3306.1,2.11759]
[1736949700214,3.2078,3307.4,3306.0,0.036]
[1736949700410,3.2078,3307.0,3306.0,0.036]
[1736949700616,3.47439745,3307.3,3306.2,0.605]
[1736949700617,3.81275,3306.6,3306.2,0.605]
[1736949700817,3.2078,3306.6,3306.1,1.677]
[1736949701017,3.25392461,3307.6,3306.0,0.036]
[1736949701018,3.2078,3306.2,3306.0,0.036]
[1736949701316,3.2078,3306.1,3306.0,0.036]
[1736949701514,3.2078,3306.1,3306.0,0.64105]
[1736949701709,3.2078,3306.1,3306.0,2.31805]
[1736949701915,3.2078,3306.5,3306.0,3.22561]
[1736949702120,3.2078,3306.9,3306.8,0.6049]
[1736949702316,3.2078,3307.6,3306.2,6.46172461]
[1736949702519,3.2078,3307.6,3306.6,3.2078]
[1736949702711,3.22760527,3307.5,3306.6,3.2078]
[1736949703024,3.22760527,3307.5,3307.3,0.6048]
[1736949703412,3.22760527,3307.5,3307.1,1.677]
[1736949703621,3.2078,3307.6,3307.5,0.60477]
[1736949704117,3.2078,3307.6,3307.5,0.84657]
[1736949704517,8.0145,3308.3,3307.5,3.4496]
[1736949704716,8.0145,3308.3,3308.2,0.60464]
[1736949704924,3.2078,3308.8,3308.5,0.60459]
[1736949705113,4.9021,3309.0,3308.2,1.677]
[1736949705319,4.9021,3309.0,3308.9,0.60452]
[1736949705515,4.9021,3309.0,3308.8,0.60453]
[1736949705721,0.60455,3308.8,3308.5,0.60457]
[1736949705924,3.2078,3308.9,3308.3,0.44245083]
[1736949706121,0.60466,3308.2,3307.6,1.677]
[1736949706323,3.2078,3308.5,3307.6,1.677]
[1736949706519,0.60461,3308.4,3307.8,0.60471]
[1736949706717,4.10360967,3308.4,3307.4,6.46172461]
[1736949706925,3.49898967,3308.4,3307.7,1.677]
[1736949707423,3.15932908,3308.5,3308.4,0.60461]
[1736949707615,0.6046,3308.5,3308.3,0.60462]
[1736949707820,3.2078,3308.6,3307.6,3.2078]
[1736949708022,3.2078,3307.7,3307.6,2.28174]
[1736949708219,3.2078,3307.7,3307.5,0.2418]
[1736949708220,0.60475,3307.6,3307.5,0.2418]
[1736949708424,5.25835,3307.6,3307.5,0.13484507]
[1736949708623,7.81877844,3307.6,3307.1,1.677]
[1736949708828,3.2078,3307.2,3307.1,2.28184]
[1736949710029,3.2078,3307.2,3307.1,1.677]
[1736949710328,4.6536,3307.6,3307.5,0.60477]
[1736949710731,3.36381391,3307.5,3307.1,1.677]
[1736949711039,3.2078,3307.8,3307.3,3.2078]
[1736949711229,0.60475,3307.7,3307.3,3.2078]
[1736949711530,3.2078,3307.8,3307.7,0.60473]
[1736949711734,4.8496,3308.0,3307.9,0.6047]
[1736949712231,3.2078,3308.1,3307.3,3.2078]
[1736949712430,0.60476,3307.6,3307.5,0.60477]
[1736949712633,3.2078,3307.7,3306.9,1.677]
[1736949712929,3.2078,3307.7,3307.6,0.60475]
[1736949713234,3.2078,3308.1,3308.0,0.60468]
[1736949713532,3.2078,3308.1,3308.0,2.28167]
[1736949713728,3.2078,3308.1,3308.0,2.28168]
[1736949714130,0.60465,3308.2,3308.0,0.60468]
[1736949714433,3.2078,3308.4,3308.0,1.677]
[1736949714634,3.3408496,3308.1,3308.0,2.28167]
[1736949714832,0.60466,3308.1,3308.0,1.677]
[1736949715231,3.9455096,3308.1,3308.0,1.677]
[1736949715434,0.60466,3308.1,3308.0,1.677]
[1736949715633,4.09391316,3308.1,3308.0,2.28168]
[1736949716039,3.48925316,3308.1,3308.0,2.28168]
[1736949716238,4.09391316,3308.1,3308.0,1.677]
[1736949716534,0.60466,3308.1,3308.0,1.677]
[1736949716736,3.2078,3308.4,3308.0,1.677]
[1736949716937,3.2078,3308.4,3308.3,0.60463]
[1736949717642,3.2078,3308.8,3308.7,0.60455]
[1736949717833,3.2078,3309.3,3308.3,0.2418]
[1736949718029,3.47442955,3308.7,3308.4,0.60461]
[1736949718243,3.47442955,3308.7,3308.3,0.2418]
[1736949718434,0.60452,3308.9,3308.8,0.60453]
[1736949718737,3.2078,3308.9,3308.8,0.60453]
[1736949719040,3.17415183,3308.9,3308.8,0.60453]
[1736949719239,3.2078,3309.3,3309.2,0.60446]
[1736949720338,0.60446,3309.2,3309.1,1.677]
[1736949720643,6.51223257,3309.3,3308.3,0.2418]
[1736949720938,0.60461,3308.4,3308.3,0.2418]
[1736949721240,3.81241,3308.4,3308.3,0.2418]
[1736949721442,7.11684257,3308.4,3308.3,0.2418]
[1736949721633,3.30443257,3308.4,3308.3,0.98047368]
[1736949721835,3.2078,3309.7,3309.2,0.60446]
[1736949722144,0.6044,3309.6,3309.5,0.6044]
[1736949722342,3.83426648,3309.6,3309.5,0.13404368]
[1736949722538,3.83426648,3309.6,3307.9,3.0235]
[1736949722539,0.60461,3308.4,3308.3,0.84642]
[1736949722737,3.2078,3308.7,3308.3,0.2418]
[1736949722939,3.2078,3309.1,3308.3,0.68234845]
[1736949723443,0.60461,3308.4,3308.3,0.2418]
[1736949724047,3.42857813,3308.4,3308.3,0.84643]
[1736949724239,0.60458,3308.6,3308.5,0.60458]
[1736949724545,3.81236,3308.7,3308.6,0.60457]
[1736949725041,0.60458,3308.6,3308.5,2.27758]
[1736949725241,0.60458,3308.6,3308.5,2.31408]
[1736949725442,0.60458,3308.6,3308.5,1.7095]
[1736949726045,3.79595383,3308.6,3308.5,0.0365]
[1736949726244,8.48795383,3308.6,3308.5,0.0365]
[1736949726442,8.48795383,3308.6,3308.3,0.2418]
[1736949726443,0.60461,3308.4,3308.3,0.2418]
[1736949726946,3.9936975,3308.4,3308.3,0.2418]
[1736949727351,3.3890875,3308.4,3308.3,0.84643]
[1736949727640,3.2078,3308.7,3308.3,0.2418]
[1736949727845,3.2078,3308.7,3308.6,0.60457]
[1736949728044,3.02121,3310.5,3308.4,1.673]
[1736949728045,3.2078,3309.1,3309.0,0.6045]
[1736949728647,6.35862017,3309.6,3309.3,0.60443]
[1736949728837,3.2078,3309.6,3309.5,0.60441]
[1736949729038,0.60442,3309.5,3309.4,0.60442]
[1736949729239,3.15082017,3309.5,3309.1,1.673]
[1736949729437,3.75523017,3309.5,3309.4,0.60442]
[1736949729645,3.2078,3309.6,3309.1,1.673]
[1736949729843,0.60442,3309.5,3309.4,0.60442]
[1736949730044,3.15152524,3309.5,3309.4,0.60442]
[1736949730349,3.75594524,3309.5,3309.1,1.673]
[1736949730539,3.15152524,3309.5,3309.4,0.60442]
[1736949731045,3.2078,3310.0,3309.9,0.60433]
[1736949731351,0.60435,3309.9,3309.6,0.60438]
[1736949731551,6.51387579,3310.0,3309.1,4.8808]
[1736949731747,3.30607579,3309.8,3309.4,0.60442]
[1736949731940,3.2078,3309.5,3309.2,0.4407584]
[1736949732244,3.2078,3309.5,3309.1,4.8808]
[1736949732449,3.2078,3309.5,3309.1,3.2078]
[1736949732648,0.60444,3309.3,3309.1,3.2078]
[1736949733054,0.60444,3309.4,3309.1,3.81227]
[1736949733352,0.60441,3309.5,3309.2,0.60445]
[1736949733547,0.60445,3309.3,3309.1,0.60447]
[1736949733743,3.2078,3309.2,3308.5,10.885]
[1736949733949,0.6045,3309.0,3308.8,0.60453]
[1736949734148,0.60449,3309.1,3308.9,0.6045]
[1736949734347,3.2078,3309.2,3308.6,1.673]
[1736949734545,3.81219,3309.6,3309.4,0.60441]
[1736949734846,3.2078,3310.0,3308.7,6.46172461]
[1736949735051,6.6752525,3310.0,3308.8,1.51133]
[1736949735240,0.60442,3309.5,3309.2,0.60445]
[1736949735548,3.8122,3309.6,3309.3,0.13382465]
[1736949735739,3.2078,3309.6,3309.4,0.13379366]
[1736949735945,3.2078,3310.0,3309.5,0.13379366]
[1736949736242,3.2078,3310.0,3309.6,0.13379366]
[1736949736438,3.2078,3310.0,3309.8,0.60435]
[1736949736653,3.81213,3310.0,3309.9,0.13379366]
[1736949736845,3.2078,3310.0,3309.9,0.13379366]
[1736949737047,3.2078,3310.0,3309.9,0.73812366]
[1736949737352,3.2078,3310.0,3309.9,0.73809383]
[1736949737554,7.9367,3310.4,3309.9,0.13376383]
[1736949737851,0.6043,3310.1,3310.0,0.13376383]
[1736949738551,1.51087,3309.9,3308.8,1.673]
[1736949738748,4.4856,3309.8,3308.8,1.673]
[1736949738949,3.2078,3309.6,3309.5,0.60441]
[1736949739250,4.3662,3309.8,3308.9,1.5113]
[1736949739446,0.60432,3310.0,3309.8,0.60433]
[1736949739651,0.6043,3310.1,3309.9,0.60433]
[1736949740056,3.2078,3310.2,3309.2,3.25392461]
[1736949740348,0.6044,3309.6,3309.3,0.60443]
[1736949740556,3.2078,3309.8,3309.1,1.51121]
[1736949740851,3.2078,3309.8,3309.7,0.60437]
[1736949741045,3.2078,3309.8,3309.7,2.27737]
[1736949742340,3.2078,3310.2,3310.1,0.60428]
[1736949743348,4.7289,3310.4,3309.7,3.18389]
[1736949743549,4.7289,3310.4,3310.3,0.60426]
[1736949745353,0.6043,3310.1,3309.8,0.60435]
[1736949745546,4.7289,3310.4,3309.7,6.43781461]
[1736949745750,4.7289,3310.4,3310.3,0.60426]
[1736949746056,3.81201,3310.6,3310.5,0.60422]
[1736949746460,3.2078,3310.6,3309.9,1.51084]
[1736949746761,3.2078,3310.6,3310.5,0.60422]
[1736949748158,0.60422,3310.5,3310.1,0.60428]
[1736949748358,6.4742329,3310.6,3309.9,3.2078]
[1736949748560,3.2078,3310.1,3309.3,1.672]
[1736949748757,0.6044,3309.6,3309.5,0.6044]
[1736949749064,12.44780725,3310.0,3309.4,0.44105099]
[1736949749261,9.1569,3310.0,3309.4,0.44105099]
[1736949749558,3.81205,3310.4,3310.3,0.60426]
[1736949749765,3.2078,3310.4,3310.3,0.60426]
[1736949750661,3.2078,3310.4,3310.3,0.73759489]
[1736949751156,3.2078,3310.8,3310.7,0.60419]
[1736949751365,3.2078,3310.8,3310.7,0.73752489]
[1736949751553,0.0008,3311.1,3310.7,0.73752489]
[1736949751858,14.1945,3312.1,3311.4,0.60406]
[1736949751859,3.2078,3311.7,3311.4,0.60406]
[1736949752056,3.2078,3311.7,3311.4,5.73739489]
[1736949752254,2.17800932,3311.5,3311.4,7.40539489]
[1736949752652,2.17800932,3311.5,3311.4,2.40539489]
[1736949752857,2.17800932,3311.5,3311.4,7.84486876]
[1736949753057,2.17800932,3311.5,3311.4,8.08636876]
[1736949754062,2.17800932,3311.5,3311.4,8.08604853]
[1736949754366,2.17800932,3311.5,3311.4,3.08604853]
[1736949754761,2.17800932,3311.5,3311.4,1.41804853]
[1736949754977,2.17800932,3311.5,3311.4,3.08604853]
[1736949755473,2.17800932,3311.5,3311.4,8.08604853]
[1736949755872,1.64437428,3311.5,3311.4,8.085894]
[1736949756678,1.02233428,3311.5,3311.4,8.085894]
[1736949757066,4.6591,3312.8,3311.4,7.481834]
[1736949757270,4.6591,3312.8,3312.4,0.60387]
[1736949757470,0.60384,3312.7,3312.5,0.13286013]
[1736949757683,3.81164,3312.7,3312.6,0.13286013]
[1736949758075,0.60384,3312.7,3312.6,0.13286013]
[1736949758275,3.81164,3312.7,3312.6,0.13286013]
[1736949758575,3.2078,3312.7,3312.6,0.13276085]
[1736949758775,6.37797586,3312.7,3312.1,1.668]
[1736949758985,4.594,3312.6,3312.1,1.668]
[1736949759174,0.60389,3312.4,3312.1,2.27193]
[1736949759375,4.594,3312.6,3312.4,0.60388]
[1736949759574,3.17017586,3312.5,3312.1,1.668]
[1736949759874,3.17017586,3312.5,3312.4,0.60388]
[1736949760075,0.60387,3312.5,3312.2,0.6039]
[1736949760276,0.60389,3312.4,3312.1,2.27192]
[1736949760476,4.594,3312.6,3311.7,3.25392461]
[1736949760682,4.4112,3312.3,3311.8,1.668]
[1736949760875,5.0151,3312.3,3312.0,0.60394]
[1736949761076,4.4112,3312.3,3312.2,0.60391]
[1736949761475,5.19785,3312.6,3312.3,0.60389]
[1736949761677,4.594,3312.6,3311.9,3.2078]
[1736949762381,4.594,3312.6,3312.0,0.43790824]
[1736949762585,4.594,3312.6,3312.5,0.60386]
[1736949762988,4.594,3312.6,3312.1,40.8]
[1736949763476,4.594,3312.6,3312.5,0.60386]
[1736949763979,5.19786,3312.6,3312.3,0.60389]
[1736949764176,3.2078,3313.0,3312.4,1.668]
[1736949764381,3.2078,3313.0,3312.9,0.60379]
[1736949764681,4.4112,3313.1,3313.0,0.60377]
[1736949764884,4.4112,3313.1,3312.8,0.60379]
[1736949765180,7.619,3313.1,3312.4,1.668]
[1736949765376,3.2078,3312.7,3311.9,3.2078]
[1736949765576,0.60385,3312.6,3312.3,0.60389]
[1736949765773,0.60382,3312.8,3312.5,0.60386]
[1736949766083,4.4112,3313.1,3312.7,0.60381]
[1736949766382,0.60378,3313.0,3312.5,3.25392461]
[1736949766682,0.60379,3312.9,3312.7,0.60381]
[1736949766890,0.60381,3312.8,3312.6,0.60383]
[1736949767087,4.4112,3313.1,3312.5,3.25392461]
[1736949767385,0.6038,3312.9,3312.7,0.60382]
[1736949767588,4.4112,3313.1,3312.5,3.25392461]
[1736949767784,0.60382,3312.8,3312.6,0.60383]
[1736949767990,1.50943,3313.0,3311.9,3.2078]
[1736949768292,6.59432922,3312.7,3312.0,1.667]
[1736949768480,0.60389,3312.4,3312.2,0.6039]
[1736949768688,3.2078,3312.7,3312.0,42.467]
[1736949768983,2.6712,3312.3,3312.2,0.60391]
[1736949769382,2.6712,3312.3,3312.2,3.57959435]
[1736949769590,3.2078,3312.7,3312.2,2.97568435]
[1736949769883,3.2078,3312.7,3312.6,3.57952435]
[1736949770387,2.6712,3313.1,3312.6,2.97568435]
[1736949770594,2.6712,3313.1,3313.0,0.60377]
[1736949770784,3.27495,3313.1,3313.0,40.93228188]
[1736949771487,3.27495,3313.1,3313.0,0.13228188]
[1736949771883,2.6712,3313.1,3313.0,0.13228188]
[1736949772283,2.6712,3313.1,3313.0,0.60381]
[1736949772483,2.6712,3313.1,3313.0,0.9774954]
[1736949773685,2.6712,3313.1,3313.0,3.95317975]
[1736949773987,3.2078,3313.7,3313.0,3.34936975]
[1736949774187,0.60375,3313.4,3313.2,0.60376]
[1736949774383,0.60375,3313.4,3313.3,40.8]
[1736949774587,8.4367,3313.7,3313.3,40.93236741]
[1736949774890,3.2078,3314.1,3313.4,6.31585176]
[1736949775091,3.81142,3314.1,3313.9,0.60364]
[1736949775391,0.60352,3314.6,3314.4,0.60355]
[1736949775585,3.28171,3314.7,3314.5,0.73587226]
[1736949775782,2.6782,3314.7,3314.6,0.13234226]
[1736949776191,2.6782,3314.7,3314.6,3.71154661]
[1736949776497,3.2078,3314.9,3314.6,3.71154661]
[1736949776498,3.2078,3314.9,3314.8,0.60349]
[1736949776687,2.6153,3315.1,3314.8,0.13224252]
[1736949776991,2.8541,3315.6,3315.0,6.18348435]
[1736949777185,3.45745,3315.6,3315.3,0.60338]
[1736949777386,2.8541,3315.6,3315.4,0.13224252]
[1736949777690,2.8541,3315.6,3315.5,0.13224252]
[1736949777691,3.45744,3315.6,3315.5,0.13224252]
[1736949778085,2.8541,3315.6,3315.5,0.13224252]
[1736949778690,2.8541,3315.6,3315.5,0.1320946]
[1736949778887,3.45744,3315.6,3315.5,0.1320946]
[1736949779992,3.45744,3315.6,3314.2,3.2078]
[1736949779993,2.8541,3315.6,3314.2,3.2078]
[1736949780294,0.6035,3314.7,3314.6,0.56910692]
[1736949780594,4.71666,3314.6,3313.7,1.667]
[1736949780797,3.2078,3314.0,3313.8,0.60367]
[1736949780992,3.2078,3314.0,3313.1,3.2078]
[1736949780993,3.2078,3314.0,3312.8,2.97568435]
[1736949781187,3.81159,3313.1,3312.6,10.868]
[1736949781389,3.2078,3313.1,3312.9,2.97568435]
[1736949781593,3.2078,3313.7,3312.9,2.97568435]
[1736949781896,3.81158,3313.2,3313.0,0.84521]
[1736949782101,1.50915,3313.9,3313.0,0.2414]
[1736949782102,3.15718612,3313.6,3313.0,0.2414]
[1736949782293,3.15718612,3313.7,3313.3,2.97568435]
[1736949782592,3.15718612,3313.8,3313.6,0.6037]
[1736949782593,0.60367,3313.8,3313.6,0.6037]
[1736949782793,0.60375,3313.4,3313.1,3.57946435]
[1736949782991,0.60379,3313.1,3313.0,0.2414]
[1736949783191,3.2078,3313.1,3312.4,46.98348435]
[1736949783398,0.60388,3312.6,3312.5,1.663]
[1736949783599,3.2078,3312.7,3312.5,1.663]
[1736949783896,0.604,3312.0,3311.7,3.81184]
[1736949784097,0.60398,3312.1,3311.8,2.26703]
[1736949784292,3.81176,3312.2,3311.9,0.604]
[1736949784496,3.81176,3312.2,3311.8,1.663]
[1736949784497,0.60398,3312.1,3311.8,2.26703]
[1736949784691,3.2078,3312.2,3311.8,1.663]
[1736949784897,0.60395,3312.3,3312.0,41.40398]
[1736949785103,3.2078,3312.7,3312.6,0.60388]
[1736949785704,3.2078,3312.7,3312.2,3.23568744]
[1736949785705,3.2078,3313.1,3312.2,3.23568744]
[1736949786101,3.2078,3313.1,3312.6,0.60387]
[1736949786302,3.2078,3313.1,3312.7,42.463]
[1736949786303,0.60381,3313.0,3312.7,42.463]
[1736949786601,0.60385,3312.8,3312.7,40.8]
[1736949786798,1.50968,3312.7,3311.4,3.83977744]
[1736949786997,0.60402,3311.9,3311.6,0.60406]
[1736949787202,3.2078,3312.2,3311.4,3.23568744]
[1736949787998,3.2078,3312.2,3311.7,40.8]
[1736949788608,3.2078,3312.2,3312.0,0.60398]
[1736949788801,3.2078,3312.2,3311.7,40.8]
[1736949789010,3.81177,3312.2,3311.8,0.60403]
[1736949789210,3.81177,3312.2,3311.5,0.60408]
[1736949789211,3.4847733,3312.1,3311.5,0.60408]
[1736949789403,3.4847733,3312.1,3311.2,6.44348744]
[1736949789604,3.2078,3312.2,3311.3,1.663]
[1736949789905,3.2078,3311.8,3311.6,40.8]
[1736949790104,0.60405,3311.7,3311.6,40.8]
[1736949790409,3.2078,3311.8,3311.1,10.868]
[1736949790410,0.60414,3311.3,3311.1,10.868]
[1736949790597,0.60414,3311.2,3311.1,10.868]
[1736949790801,3.2078,3311.4,3311.1,51.668]
[1736949791006,3.81191,3311.4,3311.1,52.27214]
[1736949791306,3.81191,3311.4,3311.1,51.668]
[1736949791307,3.2078,3311.4,3311.1,51.668]
[1736949791505,0.60414,3311.2,3311.1,10.868]
[1736949791899,3.25652416,3311.2,3310.6,1.663]
[1736949792101,0.60423,3310.7,3310.6,1.663]
[1736949792400,0.60421,3310.8,3310.1,0.60432]
[1736949792601,3.2078,3310.5,3310.0,1.663]
[1736949792803,3.81207,3310.5,3310.1,2.26733]
[1736949793003,3.2078,3310.5,3310.1,1.663]
[1736949793203,3.2078,3310.5,3309.8,3.2078]
[1736949793401,0.60433,3310.2,3309.5,10.871]
[1736949793606,3.2078,3310.6,3309.9,1.663]
[1736949793806,6.59243122,3310.6,3309.9,1.663]